[Event "*** Titled Tuesday Blitz"]
[Site "Chess.com"]
[Date "2021.03.09"]
[Round "3"]
[White "ymoy"]
[Black "MITerryble"]
[Result "0-1"]
[WhiteElo "2643"]
[BlackElo "2957"]
[TimeControl "180+1"]
[EndTime "10:30:15 PST"]
[Termination "MITerryble won by resignation"]

1. e4 {[%clk 0:03:00.9]} 1... e6 {[%clk 0:02:59.4]} 2. d4 {[%clk 0:03:00.5]}
2... d5 {[%clk 0:02:59.3]} 3. Nc3 {[%clk 0:03:00.9]} 3... Nf6 {[%clk 0:02:58.5]}
4. e5 {[%clk 0:03:01.1]} 4... Nfd7 {[%clk 0:02:58.2]} 5. f4 {[%clk 0:03:01.4]}
5... c5 {[%clk 0:02:58.5]} 6. Nf3 {[%clk 0:03:02]} 6... Nc6 {[%clk 0:02:59]} 7.
Be3 {[%clk 0:03:02.1]} 7... Be7 {[%clk 0:02:59.9]} 8. Qd2 {[%clk 0:03:01.5]}
8... O-O {[%clk 0:03:00.8]} 9. Be2 {[%clk 0:03:01.6]} 9... b6 {[%clk 0:03:00.6]}
10. O-O {[%clk 0:03:01.3]} 10... f5 {[%clk 0:03:00.6]} 11. exf6 {[%clk
0:02:56.1]} 11... Nxf6 {[%clk 0:03:00.1]} 12. Rad1 {[%clk 0:02:56]} 12... Bb7
{[%clk 0:02:49.9]} 13. Bb5 {[%clk 0:02:51]} 13... Na5 {[%clk 0:02:45.5]} 14. Ne5
{[%clk 0:02:46.5]} 14... c4 {[%clk 0:02:42.7]} 15. g4 {[%clk 0:02:02.7]} 15...
a6 {[%clk 0:02:25.7]} 16. g5 {[%clk 0:02:00.3]} 16... axb5 {[%clk 0:02:25.8]}
17. gxf6 {[%clk 0:01:59.4]} 17... gxf6 {[%clk 0:02:26.7]} 18. Nf3 {[%clk
0:01:58.7]} 18... b4 {[%clk 0:02:25.2]} 19. Ne2 {[%clk 0:01:58.7]} 19... c3
{[%clk 0:02:16.2]} 20. Qe1 {[%clk 0:01:50]} 20... cxb2 {[%clk 0:02:13.8]} 21. f5
{[%clk 0:01:49.9]} 21... Kh8 {[%clk 0:02:04.8]} 22. Nf4 {[%clk 0:01:39.9]} 22...
Rg8+ {[%clk 0:01:59.7]} 23. Kh1 {[%clk 0:01:39.9]} 23... exf5 {[%clk 0:01:40.7]}
24. Nh4 {[%clk 0:01:40]} 24... Qd7 {[%clk 0:01:32.3]} 25. Nd3 {[%clk 0:01:35.7]}
25... Nc4 {[%clk 0:01:27]} 26. Bh6 {[%clk 0:01:29.3]} 26... Rae8 {[%clk
0:01:19.9]} 27. Nxf5 {[%clk 0:01:23.4]} 27... Bd8 {[%clk 0:01:10]} 28. Qh4
{[%clk 0:01:19.5]} 28... Rg6 {[%clk 0:00:57.5]} 29. Qh5 {[%clk 0:01:08.9]} 29...
Qe6 {[%clk 0:00:42.9]} 30. Rfe1 {[%clk 0:00:59.7]} 30... Qe4+ {[%clk 0:00:35.2]}
31. Rxe4 {[%clk 0:00:58]} 31... dxe4 {[%clk 0:00:36.1]} 32. Nf4 {[%clk
0:00:51.7]} 32... e3+ {[%clk 0:00:36.3]} 33. d5 {[%clk 0:00:52.3]} 33... e2
{[%clk 0:00:20.2]} 34. Re1 {[%clk 0:00:49.5]} 34... b1=Q {[%clk 0:00:19]} 35.
Nxg6+ {[%clk 0:00:48.4]} 35... hxg6 {[%clk 0:00:17.3]} 36. Bg7+ {[%clk
0:00:45.6]} 36... Kg8 {[%clk 0:00:17.3]} 37. Qh8+ {[%clk 0:00:46.5]} 37... Kf7
{[%clk 0:00:17.4]} 38. Nh6+ {[%clk 0:00:47.4]} 38... Ke7 {[%clk 0:00:17.6]} 39.
Qxe8+ {[%clk 0:00:30.7]} 39... Kxe8 {[%clk 0:00:17.3]} 40. Rxb1 {[%clk
0:00:31.6]} 40... Bxd5+ {[%clk 0:00:11.5]} 41. Kg1 {[%clk 0:00:31.4]} 41... Nd2
{[%clk 0:00:11.1]} 42. Re1 {[%clk 0:00:31.1]} 42... Nf3+ {[%clk 0:00:10.5]} 43.
Kf2 {[%clk 0:00:31.7]} 43... Nxe1 {[%clk 0:00:11.4]} 44. Kxe1 {[%clk 0:00:32.6]}
44... Bxa2 {[%clk 0:00:07.7]} 45. Kxe2 {[%clk 0:00:31.8]} 45... Be6 {[%clk
0:00:06.9]} 46. Kd3 {[%clk 0:00:30.3]} 46... Be7 {[%clk 0:00:06.6]} 47. Ke4
{[%clk 0:00:26]} 47... Kd7 {[%clk 0:00:07]} 48. Kf4 {[%clk 0:00:24.1]} 48... Kc6
{[%clk 0:00:06.9]} 49. Ng4 {[%clk 0:00:24.4]} 49... Bxg4 {[%clk 0:00:06.2]} 50.
Kxg4 {[%clk 0:00:25.3]} 50... Kd5 {[%clk 0:00:05.7]} 51. Bh6 {[%clk 0:00:24.8]}
51... g5 {[%clk 0:00:05.6]} 52. Kf5 {[%clk 0:00:24.3]} 52... Kc4 {[%clk
0:00:04.9]} 53. Ke6 {[%clk 0:00:24.9]} 53... Bc5 {[%clk 0:00:01]} 54. Kxf6
{[%clk 0:00:24.5]} 54... Kc3 {[%clk 0:00:00.7]} 55. Bxg5 {[%clk 0:00:24.9]}
55... Kxc2 {[%clk 0:00:01.6]} 56. h4 {[%clk 0:00:25.2]} 56... b3 {[%clk
0:00:01.9]} 57. Ke6 {[%clk 0:00:25.3]} 57... b2 {[%clk 0:00:02.2]} 58. Kf6
{[%clk 0:00:26.2]} 58... b1=Q {[%clk 0:00:02.8]} 59. Kg6 {[%clk 0:00:27.1]}
59... Qb3 {[%clk 0:00:03.3]} 60. h5 {[%clk 0:00:28]} 60... Bd4 {[%clk
0:00:03.2]} 61. h6 {[%clk 0:00:28.9]} 61... Qg8+ {[%clk 0:00:03.2]} 62. Kh5
{[%clk 0:00:29.8]} 62... Qh7 {[%clk 0:00:03.5]} 63. Kg4 {[%clk 0:00:30.7]} 63...
Bc5 {[%clk 0:00:04.4]} 64. Kh5 {[%clk 0:00:30.9]} 64... Kd3 {[%clk 0:00:05.3]}
65. Kg4 {[%clk 0:00:30.2]} 65... Kc4 {[%clk 0:00:06.2]} 66. Bf4 {[%clk
0:00:30.8]} 66... b5 {[%clk 0:00:07.1]} 67. Kh5 {[%clk 0:00:31.1]} 67... b4
{[%clk 0:00:08]} 68. Be5 {[%clk 0:00:30.8]} 68... b3 {[%clk 0:00:08.9]} 69. Bg7
{[%clk 0:00:31.3]} 69... Bd4 {[%clk 0:00:09.8]} 0-1

[Event "*** Titled Tuesday Blitz"]
[Site "Chess.com"]
[Date "2021.03.09"]
[Round "3"]
[White "moro182"]
[Black "Moon_stone123"]
[Result "1-0"]
[WhiteElo "2687"]
[BlackElo "2503"]
[TimeControl "180+1"]
[EndTime "10:30:15 PST"]
[Termination "moro182 won by checkmate"]

1. d4 {[%clk 0:03:00.9]} 1... d5 {[%clk 0:02:59.2]} 2. Bf4 {[%clk 0:02:57.6]}
2... Nf6 {[%clk 0:02:57.1]} 3. e3 {[%clk 0:02:57.6]} 3... g6 {[%clk 0:02:56.6]}
4. Nc3 {[%clk 0:02:56.5]} 4... Bg7 {[%clk 0:02:55.3]} 5. Nb5 {[%clk 0:02:56.7]}
5... Na6 {[%clk 0:02:54.1]} 6. h3 {[%clk 0:02:55.7]} 6... c6 {[%clk 0:02:52.2]}
7. Nc3 {[%clk 0:02:55.3]} 7... Nb8 {[%clk 0:02:51.2]} 8. Nf3 {[%clk 0:02:54.6]}
8... O-O {[%clk 0:02:49.2]} 9. Bd3 {[%clk 0:02:53.5]} 9... b5 {[%clk 0:02:07.7]}
10. a4 {[%clk 0:02:47.5]} 10... b4 {[%clk 0:02:06.5]} 11. Ne2 {[%clk 0:02:47.7]}
11... Nbd7 {[%clk 0:02:05]} 12. O-O {[%clk 0:02:40.5]} 12... a5 {[%clk
0:02:02.4]} 13. Nc1 {[%clk 0:02:39.5]} 13... c5 {[%clk 0:01:59.7]} 14. Bb5
{[%clk 0:02:33.6]} 14... Ba6 {[%clk 0:01:52]} 15. Bxa6 {[%clk 0:02:25.5]} 15...
Rxa6 {[%clk 0:01:52.9]} 16. dxc5 {[%clk 0:02:25.8]} 16... Nxc5 {[%clk
0:01:51.5]} 17. Be5 {[%clk 0:02:24.2]} 17... Rc6 {[%clk 0:01:33.3]} 18. Nd3
{[%clk 0:02:13.9]} 18... Nfe4 {[%clk 0:01:27.6]} 19. Bxg7 {[%clk 0:02:08.4]}
19... Kxg7 {[%clk 0:01:28.5]} 20. Nf4 {[%clk 0:01:48.6]} 20... e6 {[%clk
0:01:22.3]} 21. Nd4 {[%clk 0:01:46.2]} 21... Rc8 {[%clk 0:01:20.4]} 22. Nb5
{[%clk 0:01:37.9]} 22... Nd6 {[%clk 0:01:19.1]} 23. c3 {[%clk 0:01:31.6]} 23...
bxc3 {[%clk 0:01:11.6]} 24. Nxc3 {[%clk 0:01:20.7]} 24... Nc4 {[%clk 0:01:11.5]}
25. b3 {[%clk 0:01:15.2]} 25... Nd6 {[%clk 0:01:03]} 26. Nd3 {[%clk 0:00:55.9]}
26... Qb6 {[%clk 0:00:59.5]} 27. Nxc5 {[%clk 0:00:52.2]} 27... Rxc5 {[%clk
0:00:58.4]} 28. Ne2 {[%clk 0:00:52.5]} 28... Rfc8 {[%clk 0:00:53.2]} 29. Rc1
{[%clk 0:00:50.2]} 29... Rxc1 {[%clk 0:00:51.9]} 30. Nxc1 {[%clk 0:00:49]} 30...
Ne4 {[%clk 0:00:52.4]} 31. Ne2 {[%clk 0:00:45.1]} 31... Nc3 {[%clk 0:00:48.7]}
32. Qd4+ {[%clk 0:00:44.1]} 32... Qxd4 {[%clk 0:00:44.8]} 33. Nxd4 {[%clk
0:00:45]} 33... Rb8 {[%clk 0:00:40.2]} 34. Rc1 {[%clk 0:00:40.1]} 34... Ne4
{[%clk 0:00:38.8]} 35. Rc7 {[%clk 0:00:32.2]} 35... Kf6 {[%clk 0:00:34.9]} 36.
Nb5 {[%clk 0:00:27]} 36... Nd2 {[%clk 0:00:33.4]} 37. Nd6 {[%clk 0:00:26.4]}
37... Rf8 {[%clk 0:00:32.9]} 38. Rb7 {[%clk 0:00:24]} 38... h5 {[%clk
0:00:27.3]} 39. h4 {[%clk 0:00:23.6]} 39... e5 {[%clk 0:00:20.8]} 40. Rb6 {[%clk
0:00:19.8]} 40... Kg7 {[%clk 0:00:20.5]} 41. Rb5 {[%clk 0:00:18.5]} 41... Rd8
{[%clk 0:00:18.7]} 42. Nb7 {[%clk 0:00:15.4]} 42... Rd7 {[%clk 0:00:17.1]} 43.
Nxa5 {[%clk 0:00:14.6]} 43... d4 {[%clk 0:00:17.6]} 44. Nc6 {[%clk 0:00:13]}
44... d3 {[%clk 0:00:17]} 45. Nxe5 {[%clk 0:00:12.3]} 45... Rd8 {[%clk
0:00:16.7]} 46. Rb7 {[%clk 0:00:11.2]} 46... Nxb3 {[%clk 0:00:14.4]} 47. Nxf7
{[%clk 0:00:05.2]} 47... Rd5 {[%clk 0:00:09.4]} 48. Ng5+ {[%clk 0:00:03.6]}
48... Kg8 {[%clk 0:00:08.5]} 49. Rb8+ {[%clk 0:00:03.7]} 49... Kg7 {[%clk
0:00:08.8]} 50. Ne6+ {[%clk 0:00:03.3]} 50... Kf6 {[%clk 0:00:08.8]} 51. Nf4
{[%clk 0:00:03.5]} 51... d2 {[%clk 0:00:08.9]} 52. Nxd5+ {[%clk 0:00:03.6]}
52... Ke5 {[%clk 0:00:09.3]} 53. Nc3 {[%clk 0:00:04.5]} 53... Nc1 {[%clk
0:00:05]} 54. Nd1 {[%clk 0:00:04.3]} 54... Ne2+ {[%clk 0:00:04.6]} 55. Kf1
{[%clk 0:00:04.5]} 55... g5 {[%clk 0:00:02.8]} 56. Kxe2 {[%clk 0:00:03.9]} 56...
Kf5 {[%clk 0:00:03.2]} 57. a5 {[%clk 0:00:04.8]} 57... Kg4 {[%clk 0:00:04.1]}
58. a6 {[%clk 0:00:05.2]} 58... gxh4 {[%clk 0:00:04.4]} 59. a7 {[%clk 0:00:05]}
59... h3 {[%clk 0:00:05.3]} 60. a8=Q {[%clk 0:00:05.2]} 60... Kh4 {[%clk
0:00:05.7]} 61. Qf3 {[%clk 0:00:05.1]} 61... hxg2 {[%clk 0:00:05.7]} 62. Qg3#
{[%clk 0:00:05.5]} 1-0

[Event "*** Titled Tuesday Blitz"]
[Site "Chess.com"]
[Date "2021.03.09"]
[Round "3"]
[White "starplatinum2030"]
[Black "allvim"]
[Result "0-1"]
[WhiteElo "2169"]
[BlackElo "2353"]
[TimeControl "180+1"]
[EndTime "10:30:15 PST"]
[Termination "allvim won on time"]

1. e4 {[%clk 0:03:00.7]} 1... c5 {[%clk 0:02:59.5]} 2. Nf3 {[%clk 0:02:59]} 2...
d6 {[%clk 0:02:58.2]} 3. d4 {[%clk 0:02:58.8]} 3... cxd4 {[%clk 0:02:58]} 4.
Nxd4 {[%clk 0:02:59.7]} 4... Nf6 {[%clk 0:02:58.3]} 5. Nc3 {[%clk 0:03:00]} 5...
a6 {[%clk 0:02:56.5]} 6. Bg5 {[%clk 0:02:58.9]} 6... e6 {[%clk 0:02:56.5]} 7.
Qd2 {[%clk 0:02:58.3]} 7... Be7 {[%clk 0:02:55.8]} 8. f3 {[%clk 0:02:58.2]} 8...
Qc7 {[%clk 0:02:56.3]} 9. O-O-O {[%clk 0:02:57.9]} 9... Nc6 {[%clk 0:02:56.5]}
10. Kb1 {[%clk 0:02:56.7]} 10... Bd7 {[%clk 0:02:54.8]} 11. h4 {[%clk
0:02:56.4]} 11... Ne5 {[%clk 0:02:48.6]} 12. Be3 {[%clk 0:02:51.1]} 12... Nc4
{[%clk 0:02:45.6]} 13. Bxc4 {[%clk 0:02:50.5]} 13... Qxc4 {[%clk 0:02:46.5]} 14.
g4 {[%clk 0:02:49.7]} 14... b5 {[%clk 0:02:41.2]} 15. g5 {[%clk 0:02:47.8]}
15... Nh5 {[%clk 0:02:40.1]} 16. Nce2 {[%clk 0:02:46.9]} 16... Rc8 {[%clk
0:02:33.2]} 17. Bf2 {[%clk 0:02:40.1]} 17... O-O {[%clk 0:02:28.6]} 18. Ng3
{[%clk 0:02:39.7]} 18... Nxg3 {[%clk 0:02:16.9]} 19. Bxg3 {[%clk 0:02:40.5]}
19... d5 {[%clk 0:02:04.1]} 20. e5 {[%clk 0:02:40.3]} 20... Bb4 {[%clk
0:01:52.1]} 21. Qh2 {[%clk 0:02:36.4]} 21... Bc5 {[%clk 0:01:35.7]} 22. Bf2
{[%clk 0:02:36]} 22... Bxd4 {[%clk 0:01:29.1]} 23. Bxd4 {[%clk 0:02:36.4]} 23...
b4 {[%clk 0:01:28.3]} 24. f4 {[%clk 0:02:32.4]} 24... a5 {[%clk 0:01:25.7]} 25.
h5 {[%clk 0:02:28.5]} 25... a4 {[%clk 0:01:25]} 26. f5 {[%clk 0:01:59.8]} 26...
b3 {[%clk 0:01:18.3]} 27. axb3 {[%clk 0:01:42.4]} 27... axb3 {[%clk 0:01:17.4]}
28. cxb3 {[%clk 0:01:35]} 28... Qxb3 {[%clk 0:01:17.3]} 29. g6 {[%clk
0:01:33.7]} 29... h6 {[%clk 0:00:21.2]} 30. f6 {[%clk 0:01:28.4]} 30... Ra8
{[%clk 0:00:16.8]} 31. fxg7 {[%clk 0:01:26.1]} 31... Rfc8 {[%clk 0:00:14]} 32.
gxf7+ {[%clk 0:01:15.7]} 32... Kxg7 {[%clk 0:00:14.2]} 33. Rhg1+ {[%clk
0:00:57]} 33... Kh7 {[%clk 0:00:08.3]} 34. f8=N+ {[%clk 0:00:54.1]} 34... Rxf8
{[%clk 0:00:06.9]} 35. Qh4 {[%clk 0:00:20.4]} 35... Qa2+ {[%clk 0:00:04.3]} 36.
Kc1 {[%clk 0:00:20.5]} 36... Rac8+ {[%clk 0:00:03.7]} 37. Kd2 {[%clk 0:00:20.1]}
37... Qa5+ {[%clk 0:00:02.7]} 38. Ke3 {[%clk 0:00:20.2]} 38... Qd8 {[%clk
0:00:03.5]} 39. Qg3 {[%clk 0:00:18.6]} 39... Rg8 {[%clk 0:00:03.5]} 40. Qf4
{[%clk 0:00:17.5]} 40... Qf8 {[%clk 0:00:02.4]} 41. Rxg8 {[%clk 0:00:17]} 41...
Qxg8 {[%clk 0:00:01.8]} 42. Rf1 {[%clk 0:00:16]} 42... Qg7 {[%clk 0:00:01.3]}
43. Qf7 {[%clk 0:00:15.8]} 43... Rg8 {[%clk 0:00:01.7]} 44. Qxg7+ {[%clk
0:00:15.1]} 44... Rxg7 {[%clk 0:00:02.6]} 45. Rf8 {[%clk 0:00:14.5]} 45... Rg5
{[%clk 0:00:02.1]} 46. Rd8 {[%clk 0:00:12.3]} 46... Bb5 {[%clk 0:00:01.4]} 47.
Rd6 {[%clk 0:00:12.2]} 47... Rxh5 {[%clk 0:00:01.1]} 48. Rxe6 {[%clk 0:00:12.1]}
48... Rh4 {[%clk 0:00:01.1]} 49. Re7+ {[%clk 0:00:10.8]} 49... Kg6 {[%clk
0:00:01.3]} 50. Bc3 {[%clk 0:00:03.5]} 50... Re4+ {[%clk 0:00:02.2]} 51. Kf3
{[%clk 0:00:01.5]} 51... h5 {[%clk 0:00:03.1]} 0-1

[Event "*** Titled Tuesday Blitz"]
[Site "Chess.com"]
[Date "2021.03.09"]
[Round "3"]
[White "Sam_ChessMood"]
[Black "VladimirPotkin"]
[Result "1-0"]
[WhiteElo "2882"]
[BlackElo "2619"]
[TimeControl "180+1"]
[EndTime "10:30:16 PST"]
[Termination "Sam_ChessMood won on time"]

1. Nf3 {[%clk 0:03:00.9]} 1... d5 {[%clk 0:02:58.9]} 2. g3 {[%clk 0:02:59.9]}
2... Nf6 {[%clk 0:02:54.5]} 3. Bg2 {[%clk 0:02:59.8]} 3... c6 {[%clk 0:02:54.1]}
4. O-O {[%clk 0:02:58.2]} 4... Bf5 {[%clk 0:02:54.6]} 5. c4 {[%clk 0:02:54.7]}
5... e6 {[%clk 0:02:54.9]} 6. Qb3 {[%clk 0:02:51.1]} 6... Qb6 {[%clk 0:02:47.2]}
7. d3 {[%clk 0:02:50.4]} 7... Nbd7 {[%clk 0:02:39]} 8. Be3 {[%clk 0:02:40.3]}
8... Bc5 {[%clk 0:02:38.5]} 9. d4 {[%clk 0:01:45.4]} 9... Be7 {[%clk 0:02:35.3]}
10. Nc3 {[%clk 0:01:34.8]} 10... O-O {[%clk 0:02:28.7]} 11. c5 {[%clk
0:01:10.4]} 11... Qa6 {[%clk 0:02:28.1]} 12. Nh4 {[%clk 0:01:08.3]} 12... b6
{[%clk 0:02:07.7]} 13. Nxf5 {[%clk 0:01:07.9]} 13... exf5 {[%clk 0:02:08.6]} 14.
cxb6 {[%clk 0:01:07.2]} 14... axb6 {[%clk 0:02:08.4]} 15. a4 {[%clk 0:00:56.8]}
15... Rfe8 {[%clk 0:02:00.8]} 16. Rfc1 {[%clk 0:00:54.5]} 16... Rac8 {[%clk
0:01:56.9]} 17. Bd2 {[%clk 0:00:52.4]} 17... Bf8 {[%clk 0:01:43.8]} 18. e3
{[%clk 0:00:52.6]} 18... h5 {[%clk 0:01:43.5]} 19. Na2 {[%clk 0:00:47.2]} 19...
Ne4 {[%clk 0:01:30.4]} 20. Bb4 {[%clk 0:00:41.6]} 20... c5 {[%clk 0:01:12.9]}
21. Be1 {[%clk 0:00:38.9]} 21... c4 {[%clk 0:01:09.7]} 22. Qc2 {[%clk
0:00:37.1]} 22... h4 {[%clk 0:01:02.6]} 23. b3 {[%clk 0:00:21.1]} 23... Ndf6
{[%clk 0:00:53.3]} 24. bxc4 {[%clk 0:00:19.8]} 24... Rxc4 {[%clk 0:00:53.2]} 25.
Bf1 {[%clk 0:00:18.6]} 25... Rxc2 {[%clk 0:00:46.6]} 26. Bxa6 {[%clk 0:00:19.5]}
26... Rxc1 {[%clk 0:00:43.7]} 27. Rxc1 {[%clk 0:00:19.4]} 27... Ra8 {[%clk
0:00:43.3]} 28. Bb5 {[%clk 0:00:19.3]} 28... Nd6 {[%clk 0:00:41.4]} 29. Nb4
{[%clk 0:00:16.3]} 29... Nxb5 {[%clk 0:00:40.2]} 30. axb5 {[%clk 0:00:17.2]}
30... Bxb4 {[%clk 0:00:26.4]} 31. Bxb4 {[%clk 0:00:16.5]} 31... h3 {[%clk
0:00:26.5]} 32. f3 {[%clk 0:00:13.8]} 32... Ra2 {[%clk 0:00:26.4]} 33. Be7
{[%clk 0:00:11.3]} 33... Rb2 {[%clk 0:00:18.4]} 34. Bxf6 {[%clk 0:00:09.6]}
34... gxf6 {[%clk 0:00:19.3]} 35. g4 {[%clk 0:00:09.9]} 35... fxg4 {[%clk
0:00:18.7]} 36. fxg4 {[%clk 0:00:10.5]} 36... Rxb5 {[%clk 0:00:19.5]} 37. Kf2
{[%clk 0:00:10.8]} 37... Rb3 {[%clk 0:00:19.3]} 38. Rc6 {[%clk 0:00:08.6]} 38...
Kg7 {[%clk 0:00:19.6]} 39. Kf3 {[%clk 0:00:08.9]} 39... Kg6 {[%clk 0:00:19.9]}
40. Kf4 {[%clk 0:00:08.7]} 40... b5 {[%clk 0:00:19.6]} 41. g5 {[%clk 0:00:08.1]}
41... Kg7 {[%clk 0:00:17.6]} 42. Rxf6 {[%clk 0:00:08.1]} 42... Rb2 {[%clk
0:00:17.7]} 43. Kg3 {[%clk 0:00:08.5]} 43... Re2 {[%clk 0:00:17.8]} 44. Kxh3
{[%clk 0:00:06.8]} 44... Rxe3+ {[%clk 0:00:17.8]} 45. Kg2 {[%clk 0:00:06.7]}
45... Re4 {[%clk 0:00:17.8]} 46. Rb6 {[%clk 0:00:05.7]} 46... Rxd4 {[%clk
0:00:18.3]} 47. Kf3 {[%clk 0:00:05.5]} 47... b4 {[%clk 0:00:18.2]} 48. Rb5
{[%clk 0:00:04.1]} 48... Rh4 {[%clk 0:00:17.2]} 49. Kg3 {[%clk 0:00:03.8]} 49...
Rd4 {[%clk 0:00:16.8]} 50. h4 {[%clk 0:00:04.2]} 50... Kg6 {[%clk 0:00:17]} 51.
Rb6+ {[%clk 0:00:04.7]} 51... Kf5 {[%clk 0:00:16.9]} 52. Rf6+ {[%clk 0:00:04.8]}
52... Ke4 {[%clk 0:00:17.1]} 53. Rxf7 {[%clk 0:00:05.4]} 53... b3 {[%clk
0:00:17.7]} 54. g6 {[%clk 0:00:05.5]} 54... Rb4 {[%clk 0:00:17.3]} 55. g7 {[%clk
0:00:05.3]} 55... Rb8 {[%clk 0:00:16.4]} 56. Rf8 {[%clk 0:00:05.6]} 1-0

[Event "*** Titled Tuesday Blitz"]
[Site "Chess.com"]
[Date "2021.03.09"]
[Round "3"]
[White "atwalcb"]
[Black "Kurkusha"]
[Result "1-0"]
[WhiteElo "2540"]
[BlackElo "2347"]
[TimeControl "180+1"]
[EndTime "10:30:16 PST"]
[Termination "atwalcb won by resignation"]

1. d4 {[%clk 0:02:57.7]} 1... d5 {[%clk 0:02:59.7]} 2. Nf3 {[%clk 0:02:57]} 2...
Nf6 {[%clk 0:02:59.3]} 3. c4 {[%clk 0:02:56.3]} 3... e6 {[%clk 0:02:58.6]} 4. g3
{[%clk 0:02:55.4]} 4... Bb4+ {[%clk 0:02:58.1]} 5. Bd2 {[%clk 0:02:54.7]} 5...
Bd6 {[%clk 0:02:58.4]} 6. Bg2 {[%clk 0:02:53.6]} 6... O-O {[%clk 0:02:56.7]} 7.
O-O {[%clk 0:02:53.4]} 7... Nbd7 {[%clk 0:02:55.2]} 8. Qc2 {[%clk 0:02:51.6]}
8... c6 {[%clk 0:02:53.5]} 9. Rd1 {[%clk 0:02:50.5]} 9... Ne4 {[%clk 0:02:52.7]}
10. b3 {[%clk 0:02:38.2]} 10... Nxd2 {[%clk 0:02:50.3]} 11. Nfxd2 {[%clk
0:02:36]} 11... Nf6 {[%clk 0:02:44.1]} 12. Nc3 {[%clk 0:02:35]} 12... e5 {[%clk
0:02:37.6]} 13. e3 {[%clk 0:02:21.4]} 13... Bg4 {[%clk 0:02:30.6]} 14. Re1
{[%clk 0:02:18.6]} 14... Rc8 {[%clk 0:02:24.6]} 15. h3 {[%clk 0:02:18]} 15...
Be6 {[%clk 0:02:24]} 16. Rad1 {[%clk 0:02:07]} 16... Qa5 {[%clk 0:02:15.8]} 17.
c5 {[%clk 0:01:56.6]} 17... Bb8 {[%clk 0:02:12.3]} 18. a3 {[%clk 0:01:52.2]}
18... b6 {[%clk 0:02:06.1]} 19. b4 {[%clk 0:01:45.1]} 19... Qa6 {[%clk
0:01:58.8]} 20. a4 {[%clk 0:01:35.7]} 20... bxc5 {[%clk 0:01:54]} 21. bxc5
{[%clk 0:01:33.1]} 21... Bc7 {[%clk 0:01:52.7]} 22. Rb1 {[%clk 0:01:29.4]} 22...
Rb8 {[%clk 0:01:48.7]} 23. Bf1 {[%clk 0:01:22.2]} 23... Qc8 {[%clk 0:01:47.5]}
24. Kh2 {[%clk 0:01:22.7]} 24... Bf5 {[%clk 0:01:26.6]} 25. Rxb8 {[%clk
0:01:12.5]} 25... Bxc2 {[%clk 0:01:20.4]} 26. Rxc8 {[%clk 0:01:11.8]} 26... Rxc8
{[%clk 0:01:21.3]} 27. Rc1 {[%clk 0:01:09.1]} 27... Bf5 {[%clk 0:01:20.5]} 28.
Kg2 {[%clk 0:00:56]} 28... Rb8 {[%clk 0:01:19.6]} 29. g4 {[%clk 0:00:56]} 29...
Bg6 {[%clk 0:01:18]} 30. Nd1 {[%clk 0:00:39.7]} 30... exd4 {[%clk 0:01:13.1]}
31. exd4 {[%clk 0:00:39.3]} 31... Bf4 {[%clk 0:01:09.8]} 32. Ne3 {[%clk
0:00:37.9]} 32... Rb2 {[%clk 0:01:07.9]} 33. Rd1 {[%clk 0:00:35.3]} 33... Ne4
{[%clk 0:01:03.3]} 34. Nxe4 {[%clk 0:00:28.8]} 34... Bxe4+ {[%clk 0:00:55.3]}
35. Kg1 {[%clk 0:00:28.9]} 35... Ra2 {[%clk 0:00:35.4]} 36. Bd3 {[%clk
0:00:28.8]} 36... Bxd3 {[%clk 0:00:34.7]} 37. Rxd3 {[%clk 0:00:28.6]} 37... Rxa4
{[%clk 0:00:33.3]} 38. Kg2 {[%clk 0:00:25]} 38... g6 {[%clk 0:00:33.1]} 39. Kf3
{[%clk 0:00:24.9]} 39... Bh6 {[%clk 0:00:28.2]} 40. Nc2 {[%clk 0:00:24.9]} 40...
Bg7 {[%clk 0:00:27.3]} 41. Ke3 {[%clk 0:00:23.9]} 41... Ra2 {[%clk 0:00:25.3]}
42. Nb4 {[%clk 0:00:23.4]} 42... Bh6+ {[%clk 0:00:22]} 43. Kf3 {[%clk
0:00:20.8]} 43... Ra4 {[%clk 0:00:19.3]} 44. Nxc6 {[%clk 0:00:20.9]} 44... Rc4
{[%clk 0:00:19.5]} 45. Ne7+ {[%clk 0:00:20.7]} 45... Kf8 {[%clk 0:00:18.1]} 46.
Nxd5 {[%clk 0:00:21.6]} 46... Bg7 {[%clk 0:00:16.6]} 47. Ke3 {[%clk 0:00:21.6]}
47... a5 {[%clk 0:00:16.1]} 48. Nf4 {[%clk 0:00:20]} 48... a4 {[%clk 0:00:15.1]}
49. Ne2 {[%clk 0:00:20.1]} 49... Ke8 {[%clk 0:00:12.6]} 50. Rc3 {[%clk
0:00:20.3]} 50... Rb4 {[%clk 0:00:12.2]} 51. Kd3 {[%clk 0:00:19.1]} 51... Kd8
{[%clk 0:00:12.4]} 52. c6 {[%clk 0:00:18.8]} 52... Kc7 {[%clk 0:00:12.6]} 53.
Rc4 {[%clk 0:00:16.3]} 53... Rb3+ {[%clk 0:00:11.7]} 54. Nc3 {[%clk 0:00:16.6]}
54... a3 {[%clk 0:00:11.6]} 55. Kc2 {[%clk 0:00:13.3]} 55... Rb2+ {[%clk
0:00:11.4]} 56. Kd3 {[%clk 0:00:13.4]} 56... Rxf2 {[%clk 0:00:11.4]} 57. Nd5+
{[%clk 0:00:12.4]} 57... Kc8 {[%clk 0:00:10.8]} 58. c7 {[%clk 0:00:12.3]} 58...
Rf3+ {[%clk 0:00:08.8]} 59. Ke4 {[%clk 0:00:12.3]} 1-0